bitfinex/quotes_SOLUSD_20251206
["timestamp","ask_amount","ask_price","bid_price","bid_amount"]
[1765003210982,8.24,133.14,133.12,8.17187533]
[1765003211387,8.24,133.14,133.12,11.2056221]
[1765003214997,8.24,133.14,133.12,8.17187533]
[1765003215486,3.69374677,133.13,133.1,10.54358202]
[1765003215887,0.66,133.12,133.09,0.2]
[1765003216185,8.24,133.11,133.09,0.86]
[1765003216386,8.24,133.11,133.09,8.3736974]
[1765003219198,8.9,133.11,133.09,8.3736974]
[1765003219396,8.9,133.11,133.09,0.2]
[1765003219397,0.66,133.1,133.09,0.2]
[1765003220605,8.9,133.11,133.09,0.2]
[1765003220795,3.69374677,133.13,133.09,3.89374677]
[1765003220998,8.9,133.12,133.09,3.89374677]
[1765003221198,8.9,133.12,133.09,0.2]
[1765003221499,0.66,133.11,133.09,0.2]
[1765003221808,0.66,133.11,133.09,0.86]
[1765003222014,8.9,133.12,133.09,0.86]
[1765003223591,0.66,133.11,133.09,0.2]
[1765003224515,0.66,133.11,133.09,0.86]
[1765003225216,0.66,133.11,133.09,0.2]
[1765003226310,8.17259329,133.11,133.09,0.2]
[1765003226515,11.20634006,133.11,133.09,0.2]
[1765003226723,0.66,133.1,133.09,0.2]
[1765003230418,12.91848891,133.1,133.09,0.2]
[1765003230607,5.40534091,133.1,133.09,0.2]
[1765003231596,13.64534091,133.1,133.09,0.2]
[1765003237730,124.15848891,133.1,133.09,0.2]
[1765003238235,24.16793103,133.1,133.09,0.2]
[1765003238947,40.47679503,133.1,133.09,0.2]
[1765003266070,32.97787595,133.1,133.09,1e-08]
[1765003266375,8.80994492,133.09,133.08,0.2]
[1765003266580,14.21528583,133.09,133.08,0.2]
[1765003266959,18.2256339,133.09,133.08,0.2]
[1765003268984,25.73934642,133.09,133.08,0.2]
[1765003274183,132.46414983,133.07,133.06,0.2]
[1765003274383,140.70414983,133.07,133.06,0.2]
[1765003274583,141.38414983,133.07,133.06,0.2]
[1765003274887,118.908864,133.07,133.06,0.86]
[1765003275189,110.84,133.07,133.06,0.86]
[1765003275369,102.6,133.07,133.06,0.86]
[1765003275576,110.84,133.07,133.06,0.86]
[1765003276194,102.6,133.07,133.06,0.86]
[1765003276388,8.26,133.07,133.06,0.86]
[1765003279393,8.26,133.07,133.06,13.12074749]
[1765003280906,118.908864,133.1,133.06,13.12074749]
[1765003280907,8.26,133.09,133.06,13.12074749]
[1765003281118,8.26,133.09,133.08,4.74534091]
[1765003281612,8.26,133.09,133.08,5.40534091]
[1765003281818,8.26,133.09,133.08,12.91961803]
[1765003282517,8.26,133.09,133.08,8.17427712]
[1765003282820,8.26,133.09,133.08,12.91961803]
[1765003283797,8.26,133.09,133.08,8.17427712]
[1765003284013,8.26,133.09,133.08,0.66]
[1765003288823,102.6,133.1,133.08,0.66]
[1765003289022,8.26,133.09,133.08,0.66]
[1765003289222,102.6,133.1,133.08,0.66]
[1765003289412,8.26,133.09,133.08,0.66]
[1765003290814,102.6,133.1,133.08,0.66]
[1765003291124,8.26,133.09,133.08,0.66]
[1765003300733,102.6,133.1,133.08,0.66]
[1765003300939,8.24,133.09,133.08,0.66]
[1765003317386,8.24,133.09,133.08,3.69666554]
[1765003317684,8.24,133.09,133.08,11.21094266]
[1765003320274,102.6,133.13,133.08,29.99663547]
[1765003320588,8.24,133.12,133.11,3.03666554]
[1765003320745,8.24,133.12,133.09,0.7]
[1765003322566,8.24,133.12,133.09,8.21329161]
[1765003322768,8.24,133.12,133.1,0.7]
[1765003323178,8.24,133.12,133.1,3.73666554]
[1765003323478,8.24,133.12,133.11,0.7]
[1765003324476,8.24,133.12,133.1,0.7]
[1765003324777,11.99666554,133.12,133.09,0.7]
[1765003328992,19.50874642,133.12,133.09,0.7]
[1765003329179,0.67,133.11,133.07,10.55131815]
[1765003329379,3.70666554,133.11,133.08,0.72]
[1765003329582,3.03666554,133.1,133.07,0.72]
[1765003329884,8.24,133.09,133.07,0.72]
[1765003336102,8.24,133.09,133.07,8.23478463]
[1765003336392,8.24,133.09,133.08,0.72]
[1765003336600,8.24,133.09,133.08,3.75666554]
[1765003337476,8.24,133.09,133.08,11.27094266]
[1765003341510,106.30666554,133.12,133.08,11.27094266]
[1765003341511,102.6,133.12,133.08,11.27094266]
[1765003341719,8.24,133.11,133.09,3.75666554]
[1765003342290,8.24,133.11,133.1,0.72]
[1765003346127,8.91,133.11,133.08,0.72]
[1765003346293,3.03666554,133.1,133.08,0.72]
[1765003347293,10.54991751,133.1,133.08,0.72]
[1765003347495,7.51325197,133.1,133.08,0.72]
[1765003348110,8.18325197,133.1,133.06,10.75198802]
[1765003348313,11.21991751,133.1,133.07,0.72]
[1765003348518,11.21991751,133.1,133.06,0.92]
[1765003349017,0.67,133.09,133.06,0.92]
[1765003349217,8.24,133.08,133.07,0.72]
[1765003351220,8.24,133.08,133.07,5.46531136]
[1765003351641,8.24,133.08,133.07,1.24076736]
[1765003352025,8.24,133.08,133.07,0.31781136]
[1765003353529,8.24,133.08,133.06,12.46065423]
[1765003353726,8.91,133.08,133.06,13.18065423]
[1765003357041,8.24,133.08,133.06,13.18065423]
[1765003357213,0.67,133.09,133.06,13.18065423]
[1765003357214,8.24,133.07,133.06,13.18065423]
[1765003369658,8.24,133.07,133.06,0.2]
[1765003370157,8.96,133.07,133.06,0.2]
[1765003372255,8.24,133.07,133.06,0.88]
[1765003372458,8.24,133.07,133.06,0.2]
[1765003372652,8.96,133.07,133.06,0.2]
[1765003372957,8.24,133.07,133.06,0.88]
[1765003375774,8.96,133.07,133.06,0.2]
[1765003377293,0.72,133.07,133.06,0.2]
[1765003377450,8.96,133.07,133.06,0.2]
[1765003380766,0.72,133.07,133.06,0.2]
[1765003380956,8.96,133.07,133.06,0.2]
[1765003381660,16.47484181,133.07,133.06,0.2]
[1765003381870,21.22015317,133.07,133.06,0.2]
[1765003382065,16.47484181,133.07,133.06,0.2]
[1765003405639,8.23484181,133.07,133.06,0.2]
[1765003405825,16.47484181,133.07,133.06,0.2]
[1765003418418,15.75484181,133.07,133.06,0.2]
[1765003419245,8.24,133.07,133.06,0.2]
[1765003419446,8.24,133.07,133.06,0.86]
[1765003419760,8.24,133.07,133.06,0.2]
[1765003420321,16.47484181,133.07,133.06,0.2]
[1765003426571,19.51308778,133.07,133.06,0.2]
[1765003426774,35.82195178,133.07,133.06,0.2]
[1765003440989,35.10195178,133.07,133.06,0.2]
[1765003441287,35.80195178,133.07,133.06,0.2]
[1765003444202,35.10195178,133.07,133.06,0.2]
[1765003444895,23.82370581,133.07,133.06,0.91]
[1765003445081,15.75484181,133.07,133.06,0.91]
[1765003448878,18.79308778,133.07,133.06,0.91]
[1765003454710,15.75484181,133.07,133.06,0.91]
[1765003454903,18.79308778,133.07,133.06,0.91]
[1765003455099,18.79308778,133.07,133.06,0.2]
[1765003455404,18.79308778,133.07,133.06,0.89]
[1765003455895,18.79308778,133.07,133.06,0.2]
[1765003456317,19.44308778,133.07,133.06,0.2]
[1765003456831,22.4529828,133.07,133.06,0.2]
[1765003462746,125.4529828,133.07,133.06,0.2]
[1765003466961,122.41473683,133.07,133.06,0.2]
[1765003467139,125.4529828,133.07,133.06,0.2]
[1765003468762,22.4529828,133.07,133.06,0.2]
[1765003472351,24.16384618,133.07,133.06,0.2]
[1765003474767,19.41473683,133.07,133.06,0.2]
[1765003474943,24.16384618,133.07,133.06,0.2]
[1765003493987,24.18384618,133.07,133.06,0.2]
[1765003497581,24.18384618,133.07,133.06,1e-08]
[1765003497785,37.74290045,133.07,133.06,1e-08]
[1765003499563,38.74290045,133.07,133.06,1e-08]
[1765003501385,33.9937911,133.07,133.06,1e-08]
[1765003501985,16.308864,133.05,133.04,0.2]
[1765003502173,71.44721132,133.05,133.04,1e-08]
[1765003502378,72.10721132,133.05,133.04,1e-08]
[1765003502690,9.46994492,133.04,133.03,1e-08]
[1765003502988,15.21905427,133.04,133.03,1e-08]
[1765003503193,14.55905427,133.04,133.02,1e-08]
[1765003503365,23.45905427,133.03,133.02,1e-08]
[1765003503563,26.47076228,133.03,133.02,1e-08]
[1765003503786,4.74910935,133.01,132.99,0.1]
[1765003503986,12.98910935,133.01,132.99,0.1]
[1765003504288,21.16734106,133.01,132.99,0.1]
[1765003504488,40.48813985,133.01,132.99,0.1]
[1765003509299,28.9283852,133.01,132.99,0.1]
[1765003509588,10.1682187,133.0,132.99,0.1]
[1765003509969,18.97816362,133.0,132.99,1e-08]
[1765003510589,19.97816362,133.0,132.99,1e-08]
[1765003511283,27.49696061,133.0,132.99,1e-08]
[1765003511683,16.308864,132.98,132.97,0.1]
[1765003511997,29.31797335,132.98,132.97,0.1]
[1765003512195,29.98797335,132.98,132.97,0.1]
[1765003512491,33.00058867,132.98,132.97,0.1]
[1765003513274,40.52051647,132.98,132.97,0.1]
[1765003515881,4.74910935,132.96,132.95,0.2]
[1765003516206,29.31797335,132.96,132.95,0.2]
[1765003516373,29.98797335,132.96,132.95,0.2]
[1765003516775,33.00104253,132.96,132.95,0.2]
[1765003517079,16.69217853,132.96,132.95,0.2]
[1765003518598,24.21323749,132.96,132.95,0.2]
[1765003519602,33.02318241,132.96,132.95,0.2]
[1765003520185,34.02318241,132.96,132.95,0.2]
[1765003521697,21.05797335,132.94,132.93,0.2]
[1765003521897,13.00910935,132.94,132.93,0.2]
[1765003522303,17.7582187,132.94,132.93,0.2]
[1765003523906,41.58927316,132.94,132.93,0.2]
[1765003530404,41.58927316,132.94,132.93,0.92]
[1765003531483,36.84016381,132.94,132.93,0.92]
[1765003531688,28.58016381,132.94,132.93,0.92]
[1765003531890,36.84016381,132.94,132.93,0.92]
[1765003534497,35.13609715,132.94,132.93,0.92]
[1765003535330,42.66110846,132.94,132.93,0.92]
[1765003536716,35.13609715,132.94,132.93,0.92]
[1765003543715,35.78609715,132.94,132.93,0.2]
[1765003544219,42.66110846,132.94,132.93,0.9]
[1765003544399,35.13609715,132.94,132.93,0.9]
[1765003544599,38.18113984,132.94,132.93,0.9]
[1765003544835,35.13609715,132.94,132.93,0.9]
[1765003545530,7.52219046,132.94,132.93,0.9]
[1765003545708,3.04504269,132.95,132.93,3.94504269]
[1765003545908,3.04504269,132.95,132.94,3.04504269]
[1765003545909,8.26,132.95,132.94,3.04504269]
[1765003550125,23.82841299,132.99,132.94,19.37717807]
[1765003550349,8.26,132.97,132.96,3.04504269]
[1765003553247,8.26,132.97,132.96,10.56610165]
[1765003554143,8.26,132.99,132.96,10.56610165]
[1765003554452,8.26,132.99,132.97,3.04504269]
[1765003555438,8.26,132.99,132.98,3.04504269]
[1765003555934,7.51771755,133.02,132.98,3.04504269]
[1765003556248,8.26,133.01,133.0,3.04504269]
[1765003558746,8.26,133.01,132.97,27.61117828]
[1765003559052,8.26,133.01,133.0,10.56383968]
[1765003561053,33.33929305,133.05,133.0,19.3737846]
[1765003561354,33.33929305,133.05,133.03,3.04504269]
[1765003561355,8.26,133.04,133.03,3.04504269]
[1765003566332,8.98,133.04,133.01,10.5632744]
[1765003567050,8.26,133.04,133.02,3.04504269]
[1765003568549,0.72,133.03,133.01,10.5632744]
[1765003568747,8.26,133.02,133.01,10.5632744]
[1765003573752,8.93,133.02,132.99,18.79721931]
[1765003574062,8.93,133.02,133.0,3.04504269]
[1765003574259,8.93,133.02,133.01,3.04504269]
[1765003575548,8.93,133.02,133.0,10.56348002]
[1765003577770,0.67,133.01,132.96,18.79721931]
[1765003577961,8.26,133.02,133.0,3.04504269]
[1765003578568,8.93,133.02,133.0,10.5637505]
[1765003579274,8.93,133.02,133.0,3.04504269]
[1765003579971,0.67,133.01,132.99,3.04504269]
[1765003580373,0.67,133.01,132.98,3.04504269]
[1765003580547,3.71504269,133.01,132.97,3.04504269]
[1765003580983,0.67,133.0,132.97,3.04504269]
[1765003581155,8.26,132.99,132.97,3.04504269]
[1765003581768,8.93,132.99,132.97,3.04504269]
[1765003583378,8.93,132.99,132.96,3.04504269]
[1765003584371,8.93,132.99,132.97,3.04504269]
[1765003585658,8.93,132.99,132.96,3.04504269]
[1765003586052,8.93,132.99,132.97,3.04504269]
[1765003587872,8.26,132.99,132.97,3.04504269]
[1765003588075,8.93,132.99,132.97,3.04504269]
[1765003588472,8.93,132.99,132.96,7.52062588]
[1765003588776,8.93,132.99,132.97,3.04504269]
[1765003589278,8.93,132.99,132.96,10.56566857]
[1765003596393,8.93,132.99,132.96,12.27261529]
[1765003605274,0.69,133.01,132.98,12.27161044]
[1765003605481,8.95,133.01,132.98,12.27161044]
[1765003605875,0.69,133.0,132.98,12.27161044]
[1765003607912,0.69,133.0,132.97,7.52038031]
[1765003608203,0.69,133.0,132.97,12.27236972]
[1765003611808,0.69,133.0,132.98,4.75198941]
[1765003614109,0.69,133.0,132.98,12.2717391]
[1765003614317,8.26,133.01,132.99,4.75198941]
[1765003614492,0.66,133.0,132.98,12.2717391]
[1765003614809,0.66,133.0,132.97,12.27225209]
[1765003620325,0.66,133.0,132.98,4.75198941]
[1765003621925,0.66,133.01,132.99,4.75198941]
[1765003622102,0.66,133.02,133.0,4.75198941]
[1765003622295,0.66,133.02,133.01,4.75198941]
[1765003623635,8.26,133.03,133.01,12.27019419]
[1765003623801,8.92,133.03,133.01,12.27019419]
[1765003624008,8.92,133.03,133.02,4.75198941]
[1765003627628,8.92,133.03,133.0,8.80994492]
[1765003627835,0.66,133.02,133.01,4.75198941]
[1765003628216,0.66,133.02,133.0,4.75198941]
[1765003630226,12.92969866,133.02,132.98,4.75198941]
[1765003630617,0.66,133.01,132.98,4.75198941]
[1765003630821,8.26,133.0,132.98,4.75198941]
[1765003631209,0.66,132.99,132.97,12.27212345]
[1765003634419,0.66,132.99,132.98,4.75198941]
[1765003635141,0.66,132.99,132.97,4.75198941]
[1765003635639,0.66,132.99,132.96,4.75198941]
[1765003636443,0.66,132.99,132.97,4.75198941]
[1765003646154,0.66,132.99,132.96,12.27300981]
[1765003648963,0.66,132.99,132.97,4.75198941]
[1765003649355,8.92,133.0,132.98,4.75198941]
[1765003649650,8.92,133.0,132.98,12.2717619]
[1765003654774,8.92,133.0,132.99,4.75198941]
[1765003656164,8.92,133.0,132.98,4.75198941]
[1765003656474,8.92,133.0,132.98,3.04051528]
[1765003657558,0.66,132.99,132.98,3.04051528]
[1765003658680,0.66,132.99,132.97,15.78032297]
[1765003658976,0.66,132.99,132.98,3.04051528]
[1765003660078,0.66,132.99,132.97,18.82083825]
[1765003664583,8.26,133.0,132.98,10.56025617]
[1765003665285,8.93,133.0,132.98,18.82025617]
[1765003665861,8.93,133.0,132.98,10.56025617]
[1765003666062,0.67,132.99,132.98,19.37020109]
[1765003666762,8.93,133.0,132.98,19.37020109]
[1765003667469,0.67,132.99,132.97,10.56093502]
[1765003668257,0.67,132.99,132.97,18.82093502]
[1765003668589,0.67,132.99,132.97,15.78041974]
[1765003668769,0.67,132.99,132.97,18.82093502]
[1765003672596,0.67,132.99,132.97,15.78041974]
[1765003672779,0.67,132.99,132.97,18.82093502]
[1765003672974,0.67,132.99,132.97,8.26]
[1765003673187,8.18965258,132.99,132.95,10.56198437]
[1765003673395,8.18965258,132.99,132.95,32.39738981]
[1765003673578,0.71,132.98,132.96,3.04051528]
[1765003675097,0.71,132.98,132.96,10.56156185]
[1765003679600,0.71,132.98,132.97,3.04051528]
[1765003680496,8.26,133.0,132.97,19.37095354]
[1765003680705,0.71,133.0,132.99,3.04051528]
[1765003681688,0.71,133.0,132.99,10.55987763]
[1765003686415,0.71,133.0,132.98,7.51980049]
[1765003686590,0.71,133.0,132.97,11.8504602]
[1765003686792,0.71,133.0,132.97,22.40873431]
[1765003687008,0.71,133.0,132.97,19.36821903]
[1765003687518,0.71,133.0,132.97,26.8883465]
[1765003688014,8.22880436,133.0,132.97,10.55827411]
[1765003688193,11.26931964,133.0,132.96,10.56136993]
[1765003688517,0.71,132.99,132.96,10.56136993]
[1765003688697,0.71,132.99,132.96,7.52085465]
[1765003689016,0.71,132.99,132.96,10.56136993]
[1765003690839,0.71,132.99,132.97,3.04051528]
[1765003691544,8.26,133.01,132.97,3.04051528]
[1765003691706,0.68,133.01,132.99,3.04051528]
[1765003693212,0.68,133.01,132.99,10.55976076]
[1765003693712,0.68,133.01,133.0,3.04051528]
[1765003694114,8.94,133.02,133.0,3.04051528]
[1765003694333,8.94,133.02,133.01,3.04051528]
[1765003697939,8.94,133.02,133.0,10.55918085]
[1765003700646,8.94,133.02,133.01,3.04051528]
[1765003700844,8.94,133.02,133.01,10.55874699]
[1765003701049,0.68,133.02,133.01,10.55874699]
[1765003704955,8.26,133.04,133.01,19.36869191]
[1765003705139,8.94,133.04,133.02,3.04051528]
[1765003705528,0.68,133.03,133.02,3.04051528]
[1765003706661,0.68,133.03,133.02,10.55818179]
[1765003707451,0.68,133.03,133.02,3.04051528]
[1765003709449,0.68,133.03,133.01,16.32795304]
[1765003709450,0.68,133.03,133.01,19.36846832]
[1765003710945,0.68,133.03,133.0,89.75632707]
[1765003710946,0.68,133.03,133.0,78.47864658]
[1765003711156,8.19712815,133.03,133.0,62.7]
[1765003711532,0.68,133.02,133.0,62.7]
[1765003711849,8.26,133.01,133.0,62.7]
[1765003712055,8.26,133.01,132.99,10.55965178]
[1765003712355,0.68,133.0,132.99,10.55965178]
[1765003718361,0.68,133.0,132.99,12.2689967]
[1765003730181,0.68,133.0,132.99,4.7498602]
[1765003730876,0.68,133.0,132.99,12.26922255]
[1765003731087,0.68,133.0,132.99,4.7498602]
[1765003736607,8.26,133.01,132.99,12.26922255]
[1765003736909,0.7,133.01,133.0,4.7498602]
[1765003737802,0.7,133.03,133.0,12.26865719]
[1765003738022,0.7,133.03,133.02,4.7498602]
[1765003739212,0.7,133.03,133.02,12.26752671]
[1765003746702,0.7,133.03,133.01,4.7498602]
[1765003746904,0.7,133.03,133.0,67.4498602]
[1765003747098,8.2171014,133.03,133.0,67.4498602]
[1765003747615,0.7,133.02,133.0,67.4498602]
[1765003747914,0.7,133.02,133.0,4.7498602]
[1765003749011,0.7,133.02,132.99,12.26888088]
[1765003749214,8.21766894,133.02,132.99,12.26888088]
[1765003750011,0.71,133.01,132.99,12.26888088]
[1765003751822,0.71,133.01,133.0,4.7498602]
[1765003753920,0.71,133.01,133.0,12.26848931]
[1765003754726,0.71,133.03,133.0,12.26848931]
[1765003754918,0.71,133.03,133.01,4.7498602]
[1765003755104,0.71,133.03,133.02,4.7498602]
[1765003757936,0.71,133.03,133.0,4.7498602]
[1765003759028,0.71,133.03,133.01,4.7498602]
[1765003759228,0.71,133.04,133.02,4.7498602]
[1765003759426,0.71,133.03,133.02,4.7498602]
[1765003761040,0.71,133.03,133.01,12.26753392]
[1765003770044,0.71,133.03,133.02,12.26752671]
[1765003774544,0.71,133.03,133.02,7.51766651]
[1765003783963,8.26,133.05,133.02,7.51766651]
[1765003784162,0.7,133.04,133.02,7.51766651]
[1765003784461,0.7,133.04,133.02,10.55658468]
[1765003785161,0.7,133.04,133.02,7.51766651]
[1765003787164,0.7,133.04,133.01,70.21819539]
[1765003787342,3.73891817,133.04,133.01,70.21819539]
[1765003787750,0.7,133.03,133.01,70.21819539]
[1765003789360,0.7,133.03,133.01,7.51819539]
[1765003789965,0.7,133.03,133.0,82.06741966]
[1765003790272,0.7,133.03,133.0,70.21855657]
[1765003790465,0.7,133.03,133.0,73.25747474]
[1765003791066,0.7,133.03,133.0,89.03360613]
[1765003791954,0.7,133.03,133.01,10.55676742]
[1765003792847,0.7,133.03,133.01,26.33289881]
[1765003793155,0.7,133.03,133.01,10.55676742]
[1765003793345,0.7,133.03,133.01,21.11128712]
[1765003795474,0.7,133.03,133.01,83.81128712]
[1765003797979,0.7,133.03,133.02,3.03891817]
[1765003798878,8.26,133.05,133.02,3.03891817]
[1765003798879,0.68,133.04,133.02,3.03891817]
[1765003799082,0.68,133.04,133.03,3.03891817]
[1765003800477,0.68,133.04,133.03,10.55601957]
[1765003800877,0.68,133.04,133.03,7.5171014]
[1765003801082,0.68,133.04,133.01,82.06673503]
[1765003801384,3.71891817,133.04,133.01,70.21787194]
[1765003801757,0.68,133.03,133.01,70.21787194]
[1765003802257,0.68,133.03,133.01,62.7]
[1765003802560,0.68,133.03,133.01,70.2181833]
[1765003804276,0.68,133.03,133.01,7.5181833]
[1765003806661,0.68,133.03,133.0,7.51866986]
[1765003808877,0.68,133.03,133.0,10.55758803]
[1765003816477,0.68,133.03,133.0,21.11315508]
[1765003818527,0.68,133.03,133.0,10.55758803]
[1765003818686,0.68,133.03,133.01,22.57761053]
[1765003820208,0.68,133.03,133.02,7.51766651]
[1765003821110,8.26,133.05,133.02,21.11110935]
[1765003821308,0.66,133.04,133.02,21.11110935]
[1765003822694,0.66,133.04,133.02,18.07219118]
[1765003826221,0.66,133.04,133.02,18.07206212]
[1765003829334,0.66,133.04,133.02,7.51753745]
[1765003830120,0.66,133.04,133.02,3.03891817]
[1765003830433,0.66,133.04,133.02,24.14793218]
[1765003830735,0.66,133.04,133.02,3.03891817]
[1765003830920,0.66,133.04,133.02,24.14793218]
[1765003832048,0.66,133.04,133.02,86.84793218]
[1765003832223,0.66,133.04,133.03,7.5171014]
[1765003832629,0.66,133.04,133.03,10.55601957]
[1765003832833,0.66,133.04,133.03,33.12853377]
[1765003837150,0.66,133.04,133.03,10.55601957]
[1765003838442,0.66,133.04,133.03,12.26452085]
[1765003839963,0.66,133.04,133.03,7.5171014]
[1765003842466,0.66,133.04,133.02,70.21754277]
[1765003842855,0.66,133.04,133.02,7.51754277]
[1765003844975,0.66,133.04,133.01,93.03419235]
[1765003845437,0.66,133.04,133.01,88.2867729]
[1765003845642,5.40741945,133.04,133.01,88.2867729]
[1765003845957,5.40741945,133.04,133.01,70.21805915]
[1765003846160,0.66,133.03,133.01,70.21805915]
[1765003846464,13.64741945,133.03,133.0,30.09447092]
[1765003846646,13.64741945,133.03,133.0,7.51855942]
[1765003846846,0.66,133.02,133.0,7.51855942]
[1765003847572,0.66,133.02,133.0,20.50597887]
[1765003850559,0.66,133.02,133.0,7.51855942]
[1765003852860,0.66,133.02,133.0,12.26597887]
[1765003853277,0.66,133.02,133.0,20.50597887]
[1765003860885,0.66,133.02,133.0,8.24]
[1765003861097,5.40741945,133.02,133.0,8.24]
[1765003861468,0.68,133.01,132.99,62.7]
[1765003861785,0.68,133.01,132.98,86.23833424]
[1765003862670,0.68,133.01,132.99,7.51914859]
[1765003865086,0.68,133.01,132.99,4.74741945]
[1765003865295,8.19827402,133.01,132.98,86.23833424]
[1765003865480,8.24,133.0,132.97,7.52026293]
[1765003865682,13.66741945,133.0,132.96,34.85116886]
[1765003865982,5.42741945,132.99,132.94,4.74741945]
[1765003866192,5.42741945,132.99,132.94,27.33522956]
[1765003866393,0.68,132.98,132.94,27.33522956]
[1765003866590,8.24,132.97,132.94,22.58781011]
[1765003866794,8.24,132.97,132.94,7.52217807]
[1765003866992,0.68,132.96,132.94,7.52217807]
[1765003867398,0.68,132.96,132.94,12.26959752]
[1765003867704,8.24,132.97,132.94,24.53746505]
[1765003867885,0.68,132.96,132.94,24.53746505]
[1765003868203,8.92,132.97,132.94,12.26959752]
[1765003868607,8.92,132.97,132.95,15.76152579]
[1765003869207,8.24,132.97,132.95,15.76152579]
[1765003869408,0.68,132.96,132.95,15.76152579]
[1765003870486,0.68,132.96,132.95,7.52152579]
[1765003872318,0.68,132.98,132.95,12.26894524]
[1765003872620,0.68,132.97,132.96,8.80994492]
[1765003872818,0.68,132.97,132.95,15.76152579]
[1765003876116,0.68,132.97,132.95,7.52152579]
[1765003877109,0.68,132.97,132.96,8.80994492]
[1765003877313,8.26,132.98,132.96,71.50994492]
[1765003877625,8.26,132.98,132.96,76.25736437]
[1765003877826,8.94,132.98,132.96,76.25736437]
[1765003879201,8.94,132.98,132.96,79.03058345]
[1765003880832,0.68,133.0,132.97,12.2676787]
[1765003881014,0.68,133.0,132.97,74.9676787]
[1765003882118,8.94,133.01,132.98,13.55736437]
[1765003882307,0.68,133.0,132.98,13.55736437]
[1765003883023,0.68,133.0,132.98,16.32966364]
[1765003883620,0.68,133.0,132.98,8.80994492]
[1765003883811,4.74741945,132.99,132.96,8.80994492]
[1765003884016,8.26,132.98,132.96,8.80994492]
[1765003884220,8.94,132.98,132.95,8.80994492]
[1765003884522,0.68,132.97,132.95,8.80994492]
[1765003884734,0.68,132.97,132.96,16.33085713]
[1765003888814,8.26,132.98,132.96,16.33085713]
[1765003889128,8.26,132.98,132.97,8.80994492]
[1765003890029,8.26,132.98,132.97,16.33043826]
[1765003890234,8.94,132.98,132.97,16.33043826]
[1765003890420,8.94,132.98,132.97,79.03043826]
[1765003894024,8.26,132.98,132.97,79.03043826]
[1765003902653,8.95,132.98,132.97,79.03043826]
[1765003907464,8.26,132.98,132.97,79.03043826]
[1765003908164,0.69,133.01,132.97,100.87298372]
[1765003908470,0.69,133.01,132.99,8.80994492]
[1765003909247,0.69,133.01,132.99,16.32925482]
[1765003910573,8.26,133.02,132.99,82.07056692]
[1765003910751,8.95,133.02,132.99,82.07056692]
[1765003911147,8.26,133.02,132.99,82.07056692]
[1765003911367,0.69,133.01,132.99,100.86897281]
[1765003913167,8.95,133.02,132.99,100.86897281]
[1765003914687,8.97,133.02,132.99,100.86897281]
[1765003915789,8.97,133.02,133.01,8.80994492]
[1765003916086,8.97,133.02,133.01,71.50994492]
[1765003916293,8.26,133.02,133.01,71.50994492]
[1765003916790,8.97,133.02,133.01,71.50994492]
[1765003920195,8.97,133.02,133.01,79.02817663]
[1765003921797,8.26,133.02,133.01,82.06948873]
[1765003922097,0.71,133.04,133.01,82.06948873]
[1765003922299,0.71,133.04,133.02,3.0413121]
[1765003922888,8.26,133.05,133.03,11.85125702]
[1765003923073,8.97,133.05,133.03,74.55125702]
[1765003923897,8.97,133.05,133.03,82.0679495]